fUSD/lending_fUSD_20250716
["ID","MTS","AMOUNT","RATE_DAILY","PERIOD"]
[372547348,1752679833165,-4125.88,0.00019584,2]
[372547349,1752679833175,-20242.0,0.000196,2]
[372547350,1752679833185,-173.43,0.00019648,2]
[372547351,1752679833198,-799.29,0.00019664,2]
[372547352,1752679833209,-167.45,0.00019819,2]
[372547353,1752679833219,-197.12689243,0.00019869,2]
[372547354,1752679833228,-19339.34362235,0.000199,2]
[372547355,1752679833239,-996.19361349,0.000199,2]
[372547356,1752679833250,-170.45,0.00019969,2]
[372547357,1752679833265,-996.19361342,0.00019978,2]
[372547358,1752679833275,-470.88807852,0.00019985,2]
[372547359,1752679833285,-173.08,0.0001999,2]
[372547360,1752679833295,-1800.0,0.0002,8]
[372547361,1752679833305,-247585.86197116,0.0002,2]
[372547362,1752679833315,-500.0,0.0002,8]
[372547363,1752679833326,-2003.0,0.0002,8]
[372547364,1752679833339,-500.0,0.0002,8]
[372547365,1752679833349,-150.0,0.0002,8]
[372547366,1752679833359,-150.0,0.0002,8]
[372547367,1752679833369,-150.0,0.0002,2]
[372547368,1752679833378,-765.0,0.0002,8]
[372547369,1752679833389,-28949.23837447,0.0002,2]
[372547370,1752679833398,-996.19361342,0.00020057,2]
[372547371,1752679833408,-996.19361342,0.00020135,2]
[372547372,1752679833418,-996.19361342,0.00020214,2]
[372547373,1752679833427,-197.12689241,0.00020238,2]
[372547374,1752679833438,-500.0,0.00020274,8]
[372547375,1752679833448,-2003.0,0.00020274,8]
[372547376,1752679833458,-500.0,0.00020274,8]
[372547377,1752679833467,-150.0,0.00020274,8]
[372547378,1752679833477,-765.0,0.00020274,8]
[372547379,1752679833487,-648.631238,0.00020291,8]
[372547380,1752679833496,-996.19361342,0.00020292,2]
[372547381,1752679833506,-1544.15163423,0.000203,2]
[372547382,1752679833516,-5511.0,0.000203,3]
[372547383,1752679833526,-161.48,0.0002032,2]
[372547384,1752679833536,-1000.0,0.00020368,2]
[372547385,1752679833546,-250.0,0.00020368,2]
[372547386,1752679833556,-996.19361342,0.00020371,2]
[372547387,1752679833566,-12500.0,0.00020392,7]
[372547388,1752679833576,-476.61752775,0.00020392,7]
[372547389,1752679833585,-210.72748344,0.00020392,7]
[372547390,1752679833595,-838.7287696,0.00020392,7]
[372547391,1752679833604,-291.62798,0.000204,2]
[372547392,1752679833614,-75410.6669943,0.00020401,2]
[372547393,1752679833624,-12500.0,0.00020401,7]
[372547394,1752679833633,-12500.0,0.0002041,7]
[372547395,1752679833643,-12500.0,0.00020418,7]
[372547396,1752679833653,-476.61752775,0.00020418,7]
[372547397,1752679833663,-12500.0,0.00020427,7]
[372547398,1752679833672,-12500.0,0.00020436,7]
[372547399,1752679833685,-12500.0,0.00020445,7]
[372547400,1752679833696,-500.0,0.00020445,7]
[372547401,1752679833706,-150.0,0.00020445,7]
[372547402,1752679833715,-150.0,0.00020445,7]
[372547403,1752679833726,-500.0,0.00020445,2]
[372547404,1752679833735,-3273.0,0.00020445,7]
[372547405,1752679833746,-500.0,0.00020445,7]
[372547406,1752679833757,-150.0,0.00020445,7]
[372547407,1752679833767,-500.0,0.00020445,7]
[372547408,1752679833778,-500.0,0.00020445,7]
[372547409,1752679833788,-500.0,0.00020445,7]
[372547410,1752679833799,-500.0,0.00020445,2]
[372547411,1752679833809,-996.19361342,0.00020449,2]
[372547412,1752679833820,-151.0,0.00020453,2]
[372547413,1752679833831,-151.0,0.00020453,2]
[372547414,1752679833841,-12500.0,0.00020454,7]
[372547415,1752679833851,-476.61752775,0.00020454,7]
[372547416,1752679833861,-500.0,0.00020461,2]
[372547417,1752679833871,-500.0,0.00020461,2]
[372547418,1752679833880,-177.04116574,0.00020461,2]
[372547419,1752679833890,-500.0,0.00020461,2]
[372547420,1752679833901,-500.0,0.00020461,2]
[372547421,1752679833911,-500.0,0.00020461,2]
[372547422,1752679833921,-500.0,0.00020461,2]
[372547423,1752679833932,-500.0,0.00020461,2]
[372547424,1752679833944,-12500.0,0.00020462,7]
[372547425,1752679833954,-12500.0,0.00020471,7]
[372547426,1752679833972,-12500.0,0.0002048,7]
[372547427,1752679833984,-12500.0,0.00020489,7]
[372547428,1752679833994,-12500.0,0.00020498,7]
[372547429,1752679834004,-1304.0237,0.00020506,2]
[372547430,1752679834015,-12500.0,0.00020506,7]
[372547431,1752679834026,-291.62798,0.0002051,2]
[372547432,1752679834036,-12500.0,0.00020515,7]
[372547433,1752679834048,-12500.0,0.00020524,7]
[372547434,1752679834058,-208.579628,0.00020524,2]
[372547435,1752679834068,-151.0,0.00020524,2]
[372547436,1752679834078,-996.19361342,0.00020528,2]
[372547437,1752679834089,-12500.0,0.00020533,7]
[372547438,1752679834099,-200.0,0.0002054,2]
[372547439,1752679834110,-12500.0,0.00020542,7]
[372547440,1752679834120,-156.42,0.00020548,2]
[372547441,1752679834130,-500.0,0.00020548,8]
[372547442,1752679834139,-2003.0,0.00020548,8]
[372547443,1752679834150,-500.0,0.00020548,8]
[372547444,1752679834160,-150.0,0.00020548,8]
[372547445,1752679834170,-765.0,0.00020548,8]
[372547446,1752679834179,-12500.0,0.0002055,7]
[372547447,1752679834191,-12500.0,0.00020559,7]
[372547448,1752679834200,-744.982,0.00020565,2]
[372547449,1752679834210,-151.0,0.00020567,2]
[372547450,1752679834220,-151.0,0.00020567,2]
[372547451,1752679834232,-151.0,0.00020567,2]
[372547452,1752679834245,-12500.0,0.00020568,7]
[372547453,1752679834260,-350.0,0.00020585,2]
[372547454,1752679834273,-5000.0,0.00020592,2]
[372547455,1752679834286,-179.7695246,0.000206,2]
[372547456,1752679834297,-510.56738103,0.000206,2]
[372547457,1752679834308,-245.71794044,0.00020606,2]
[372547458,1752679834321,-151.0,0.00020606,2]
[372547459,1752679834334,-200.49229882,0.00020606,2]
[372547460,1752679834345,-500.0,0.00020606,2]
[372547461,1752679834358,-500.0,0.00020606,2]
[372547462,1752679834370,-197.12689241,0.00020606,2]
[372547463,1752679834383,-510.56738104,0.00020606,2]
[372547464,1752679834396,-2927.75,0.00020619,2]
[372547465,1752679834408,-5800.0,0.00020632,2]
[372547466,1752679834422,-307.46205994,0.00020638,7]
[372547467,1752679834433,-5800.0,0.00020641,2]
[372547468,1752679834447,-151.0,0.00020647,2]
[372547469,1752679834458,-12500.0,0.00020647,7]
[372547470,1752679834471,-5800.0,0.00020649,2]
[372547471,1752679834484,-207.4,0.00020656,2]
[372547472,1752679834497,-2066.52441808,0.00020656,2]
[372547473,1752679834509,-300.0,0.00020656,2]
[372547474,1752679834521,-300.0,0.00020656,2]
[372547475,1752679834534,-300.0,0.00020656,2]
[372547476,1752679834547,-300.0,0.00020656,2]
[372547477,1752679834559,-160.0,0.00020656,2]
[372547478,1752679834572,-431.42848765,0.00020656,2]
[372547479,1752679834586,-12500.0,0.00020656,7]
[372547480,1752679834597,-5800.0,0.00020658,2]
[372547481,1752679834615,-12500.0,0.00020665,7]
[372547482,1752679834628,-5800.0,0.00020666,2]
[372547483,1752679834641,-151.0,0.00020666,2]
[372547484,1752679834654,-151.0,0.00020666,2]
[372547485,1752679834667,-151.0,0.00020666,2]
[372547486,1752679834691,-12500.0,0.00020674,7]
[372547487,1752679834704,-5800.0,0.00020675,2]
[372547488,1752679834719,-151.0,0.00020682,2]
[372547489,1752679834732,-151.0,0.00020682,2]
[372547490,1752679834747,-12500.0,0.00020682,7]
[372547491,1752679834761,-5800.0,0.00020683,2]
[372547492,1752679834774,-151.0,0.00020691,2]
[372547493,1752679834786,-151.0,0.00020691,2]
[372547494,1752679834799,-197.110691,0.00020691,2]
[372547495,1752679834811,-164.835925,0.00020691,2]
[372547496,1752679834822,-197.110691,0.00020691,2]
[372547497,1752679834834,-151.0,0.00020691,2]
[372547498,1752679834846,-164.835925,0.00020691,2]
[372547499,1752679834859,-151.0,0.00020691,2]
[372547500,1752679834873,-151.0,0.00020691,2]
[372547501,1752679834887,-469.830246,0.00020691,2]
[372547502,1752679834898,-469.830246,0.00020691,2]
[372547503,1752679834910,-151.0,0.00020691,2]
[372547504,1752679834921,-151.0,0.00020691,2]
[372547505,1752679834932,-275.41888,0.00020691,2]
[372547506,1752679834944,-151.0,0.00020691,2]
[372547507,1752679834958,-151.0,0.00020691,2]
[372547508,1752679834972,-151.0,0.00020691,2]
[372547509,1752679834985,-151.0,0.00020691,2]
[372547510,1752679834996,-151.0,0.00020691,2]
[372547511,1752679835008,-151.0,0.00020691,2]
[372547512,1752679835019,-151.0,0.00020691,2]
[372547513,1752679835030,-151.0,0.00020691,2]
[372547514,1752679835043,-151.0,0.00020691,2]
[372547515,1752679835055,-151.0,0.00020691,2]
[372547516,1752679835067,-151.0,0.00020691,2]
[372547517,1752679835079,-151.0,0.00020691,2]
[372547518,1752679835090,-151.0,0.00020691,2]
[372547519,1752679835101,-151.526865,0.00020691,2]
[372547520,1752679835112,-151.0,0.00020691,2]
[372547521,1752679835123,-151.0,0.00020691,2]
[372547522,1752679835134,-151.735375,0.00020691,2]
[372547523,1752679835156,-151.0,0.00020691,2]
[372547524,1752679835167,-162.152434,0.00020691,2]
[372547525,1752679835177,-162.152434,0.00020691,2]
[372547526,1752679835191,-151.0,0.00020691,2]
[372547527,1752679835202,-151.0,0.00020691,2]
[372547528,1752679835214,-151.0,0.00020691,2]
[372547529,1752679835225,-508.43483,0.00020691,2]
[372547530,1752679835237,-508.43483,0.00020691,2]
[372547531,1752679835248,-170.45,0.00020691,2]
[372547532,1752679835260,-12500.0,0.00020691,7]
[372547533,1752679835271,-5800.0,0.00020691,2]
[372547534,1752679835283,-151.0,0.00020692,2]
[372547535,1752679835295,-151.0,0.00020693,2]
[372547536,1752679835306,-151.0,0.00020693,2]
[372547537,1752679835317,-151.0,0.00020693,2]
[372547538,1752679835329,-205.011568,0.00020693,2]
[372547539,1752679835340,-151.0,0.00020693,2]
[372547540,1752679835352,-500.0,0.00020694,2]
[372547541,1752679835363,-638.8147044,0.00020697,2]
[372547542,1752679835374,-946.32910729,0.00020697,2]
[372547543,1752679835387,-40000.0,0.000207,4]
[372547544,1752679835399,-12500.0,0.000207,7]
[372547545,1752679835410,-5800.0,0.000207,2]
[372547546,1752679835421,-151.67528,0.000207,2]
[372547547,1752679835433,-151.0,0.000207,2]
[372547548,1752679835449,-151.0,0.000207,2]
[372547549,1752679835460,-171.304411,0.000207,2]
[372547550,1752679835471,-171.304411,0.000207,2]
[372547551,1752679835483,-151.0,0.000207,2]
[372547552,1752679835494,-152.772097,0.000207,2]
[372547553,1752679835506,-151.0,0.000207,2]
[372547554,1752679835518,-216.072314,0.000207,2]
[372547555,1752679835529,-151.0,0.000207,2]
[372547556,1752679835542,-151.0,0.000207,2]
[372547557,1752679835553,-151.0,0.000207,2]
[372547558,1752679835564,-151.0,0.000207,2]
[372547559,1752679835576,-162.152434,0.000207,2]
[372547560,1752679835587,-162.152434,0.000207,2]
[372547561,1752679835598,-151.0,0.000207,2]
[372547562,1752679835610,-151.0,0.000207,2]
[372547563,1752679835622,-151.0,0.000207,2]
[372547564,1752679835634,-151.0,0.000207,2]
[372547565,1752679835646,-150.0,0.00020705,2]
[372547566,1752679835658,-2099.59307282,0.00020705,2]
[372547567,1752679835669,-151.0,0.00020705,2]
[372547568,1752679835681,-151.0,0.00020705,2]
[372547569,1752679835698,-151.0,0.00020705,2]
[372547570,1752679835710,-151.0,0.00020705,2]
[372547571,1752679835723,-151.0,0.00020705,2]
[372547572,1752679835736,-151.0,0.00020705,2]
[372547573,1752679835747,-151.0,0.00020705,2]
[372547574,1752679835759,-151.0,0.00020705,2]
[372547575,1752679835774,-460.0,0.00020705,2]
[372547576,1752679835785,-5695.94,0.00020705,2]
[372547577,1752679835797,-158678.85510368,0.00020706,2]
[372547578,1752679837563,-535.190275,0.00020706,2]
[372547579,1752679837589,-47435.66120425,0.00020706,2]
[372547580,1752679837690,-713.48826281,0.00020606,2]
[372547581,1752679837704,-282.70535061,0.00020606,2]
[372547582,1752679837714,-1811.02031019,0.00020706,2]
[372547583,1752679837726,-492.21845066,0.00020706,2]
[372547584,1752679837740,-405.4985078,0.00020706,2]
[372547585,1752679837753,-273.18252611,0.00020706,2]
[372547586,1752679837765,-685.20487533,0.00020706,2]
[372547603,1752679839146,-250.56831572,0.00020065,2]
[372547605,1752679839156,-157.681486,0.00020462,2]
[372547607,1752679839166,-151.0,0.00020691,2]
[372547610,1752679839176,-15024.97404236,0.00020706,2]
[372547612,1752679839188,-28108.63569297,0.00020706,2]
[372547614,1752679839202,-920.0,0.00020706,2]
[372547629,1752679839336,-3244.4,0.00020706,2]
[372547636,1752679839400,-593.85704765,0.00020706,2]
[372547802,1752679840959,-151.0,0.00020453,2]
[372547804,1752679840969,-151.0,0.00020524,2]
[372547806,1752679840979,-962.72919441,0.00020706,2]
[372547892,1752679841806,500.0,6.8e-07,120]
[372548076,1752679843573,-309.02768741,0.00020706,2]
[372548079,1752679843586,-461.412428,0.00020706,2]
[372548085,1752679843637,-2569.09171826,0.00020706,2]
[372548087,1752679843649,-2066.49861418,0.00020706,2]
[372548089,1752679843661,-3230.0,0.00020706,2]
[372548093,1752679843684,-95968.54556642,0.00020706,2]
[372548428,1752679847117,-151.0,0.00020682,2]
[372548430,1752679847127,-151.0,0.000207,2]
[372548433,1752679847138,-2234.44645658,0.00020706,2]
[372548480,1752679847523,-2223.74664,0.00020706,2]
[372548482,1752679847535,-1604.71452902,0.00020706,2]
[372548551,1752679848217,-262.6,0.00020706,2]
[372548553,1752679848230,-6025.0,0.00020706,2]
[372548555,1752679848243,-264.07292333,0.00020706,2]
[372548560,1752679848284,-374.55,0.00020706,2]
[372549026,1752679853402,500.0,6.8e-07,120]
[372550096,1752679865177,300.0,6.8e-07,120]
[372551783,1752679918361,500.0,6.8e-07,120]
[372551784,1752679929668,500.0,6.8e-07,120]
[372551785,1752679941428,500.0,6.8e-07,120]
[372551786,1752679953167,500.0,6.8e-07,120]
[372551787,1752679966004,500.0,6.8e-07,120]
[372551789,1752679976986,500.0,6.8e-07,120]
[372551790,1752679990400,500.0,6.8e-07,120]
[372551792,1752680004701,500.0,6.8e-07,120]
[372551794,1752680017496,500.0,6.8e-07,120]
[372551798,1752680027859,151.68,0.00013699,2]
[372551799,1752680031339,500.0,6.8e-07,120]
[372551801,1752680043760,500.0,6.8e-07,120]
[372551802,1752680055327,500.0,6.8e-07,120]
[372551803,1752680055848,188.40676599,0.00023096,30]
[372551804,1752680067348,500.0,6.8e-07,120]
[372551805,1752680079722,500.0,6.8e-07,120]
[372551806,1752680095767,250.0,6.8e-07,120]
[372551809,1752680179365,500.0,6.8e-07,120]
[372551810,1752680190928,1000.0,0.000215,120]
[372551811,1752680191740,500.0,6.8e-07,120]
[372551814,1752680203766,500.0,6.8e-07,120]
[372551815,1752680217141,500.0,6.8e-07,120]
[372551816,1752680229293,500.0,6.8e-07,120]
[372551817,1752680241347,500.0,6.8e-07,120]
[372551818,1752680257139,460.0,6.8e-07,120]
[372551819,1752680328425,339.00000103,6.8e-07,120]
[372551820,1752680328453,160.99999897,6.8e-07,120]
[372551821,1752680342508,1000.0,6.8e-07,120]
[372551822,1752680353822,1000.0,6.8e-07,120]
[372551823,1752680367215,1000.0,6.8e-07,120]
[372551824,1752680379315,1000.0,6.8e-07,120]
[372551826,1752680392050,839.00000103,6.8e-07,120]
[372551827,1752680392073,160.99999897,6.8e-07,120]
[372551828,1752680407653,1000.0,6.8e-07,120]
[372551829,1752680473007,1000.0,6.8e-07,120]
[372551831,1752680485922,1000.0,6.8e-07,120]
[372551832,1752680500573,1000.0,6.8e-07,120]
[372551833,1752680513600,1000.0,6.8e-07,120]
[372551837,1752680526715,1000.0,6.8e-07,120]
[372551840,1752680541773,1000.0,6.8e-07,120]
[372551841,1752680555259,1000.0,6.8e-07,120]
[372551842,1752680568976,1000.0,6.8e-07,120]
[372551843,1752680581119,1000.0,6.8e-07,120]
[372551844,1752680593661,1000.0,6.8e-07,120]
[372551845,1752680608011,1000.0,6.8e-07,120]
[372551846,1752680613438,5511.0,0.000181,5]
[372551847,1752680629240,1000.0,6.8e-07,120]
[372551848,1752680643249,1000.0,6.8e-07,120]
[372551849,1752680655494,1000.0,6.8e-07,120]
[372551850,1752680667955,1000.0,6.8e-07,120]
[372551852,1752680684238,1000.0,6.8e-07,120]
[372551855,1752680692749,1557.72772689,0.00018,2]
[372551856,1752680696915,1000.0,6.8e-07,120]
[372551859,1752680703212,3699.20521348,0.0002111,30]
[372551860,1752680709802,1000.0,6.8e-07,120]
[372551861,1752680722284,1000.0,6.8e-07,120]
[372551863,1752680735613,1000.0,6.8e-07,120]
[372551864,1752680749007,1000.0,6.8e-07,120]
[372551865,1752680762051,1000.0,6.8e-07,120]
[372551866,1752680774994,1000.0,6.8e-07,120]
[372551867,1752680787782,1000.0,6.8e-07,120]
[372551868,1752680799832,1000.0,6.8e-07,120]
[372551869,1752680812333,1000.0,6.8e-07,120]
[372551872,1752680824435,1000.0,6.8e-07,120]
[372551874,1752680838959,1000.0,6.8e-07,120]
[372551875,1752680853850,1000.0,6.8e-07,120]
[372551876,1752680866928,1000.0,6.8e-07,120]
[372551877,1752680880530,1000.0,6.8e-07,120]
[372551878,1752680892595,1000.0,6.8e-07,120]
[372551879,1752680911245,1000.0,6.8e-07,120]
[372551880,1752680923663,1000.0,6.8e-07,120]
[372551881,1752680937371,1000.0,6.8e-07,120]
[372551882,1752680950444,1000.0,6.8e-07,120]
[372551883,1752680962606,1000.0,6.8e-07,120]
[372551884,1752680965955,3809.11512,0.00022795,30]
[372551885,1752680975639,1000.0,6.8e-07,120]
[372551887,1752680988729,1000.0,6.8e-07,120]
[372551889,1752681000756,1000.0,6.8e-07,120]
[372551891,1752681013833,450.0,6.8e-07,120]
[372551904,1752681031777,-2167.85808854,0.00018338,2]
[372551905,1752681031787,-250.0,0.00018417,2]
[372551906,1752681031796,-151.0,0.0001842,2]
[372551907,1752681031805,-150.0,0.00018444,2]
[372551908,1752681031814,-150.0,0.00018444,2]
[372551909,1752681031823,-150.0,0.00018444,2]
[372551910,1752681031833,-200.0,0.00018465,2]
[372551911,1752681031842,-419.64,0.00018725,2]
[372551912,1752681031851,-814.23863772,0.00018802,2]
[372551913,1752681031860,-300.0,0.00018802,2]
[372551914,1752681031870,-1200.0,0.00018802,2]
[372551915,1752681031879,-45665.66,0.00018803,2]
[372551916,1752681031889,-181.09556775,0.00018836,2]
[372551917,1752681031898,-431.11,0.00018845,2]
[372551918,1752681031908,-995.24,0.00018902,2]
[372551919,1752681031918,-449.3,0.00019091,2]
[372551920,1752681031927,-190.0,0.0001916,7]
[372551921,1752681031937,-850.0,0.00019161,2]
[372551922,1752681031948,-300.0,0.00019161,2]
[372551923,1752681031959,-500.0,0.00019162,2]
[372551924,1752681031970,-500.0,0.00019162,2]
[372551925,1752681031981,-153.24669149,0.00019162,2]
[372551926,1752681031992,-500.0,0.00019162,2]
[372551927,1752681032003,-163.674078,0.00019162,2]
[372551928,1752681032015,-151.0,0.00019162,2]
[372551929,1752681032025,-600.0,0.00019162,2]
[372551930,1752681032034,-600.0,0.00019162,2]
[372551931,1752681032044,-600.0,0.00019162,2]
[372551932,1752681032055,-329.77291148,0.00019162,2]
[372551933,1752681032065,-500.0,0.00019162,2]
[372551934,1752681032074,-500.0,0.00019162,2]
[372551935,1752681032085,-500.0,0.00019162,2]
[372551936,1752681032096,-500.0,0.00019162,2]
[372551937,1752681032106,-500.0,0.00019162,2]
[372551938,1752681032115,-500.0,0.00019162,2]
[372551939,1752681032126,-215.21511082,0.00019162,2]
[372551940,1752681032136,-700.77,0.00019163,2]
[372551941,1752681032146,-848.0,0.00019172,2]
[372551942,1752681032156,-43161.84,0.00019173,2]
[372551943,1752681032165,-179.7695246,0.00019178,2]
[372551944,1752681032175,-176.97,0.00019178,2]
[372551945,1752681032185,-1000.0,0.00019321,2]
[372551946,1752681032197,-191.71,0.00019336,2]
[372551947,1752681032207,-999.99,0.00019339,2]
[372551948,1752681032217,-3782.85,0.00019339,2]
[372551950,1752681032226,-3069.09,0.00019339,2]
[372551952,1752681032236,-499.99,0.00019339,2]
[372551954,1752681032245,-2936.47,0.00019339,2]
[372551956,1752681032254,-150.99,0.00019339,2]
[372551958,1752681032264,-931.12,0.00019339,2]
[372551960,1752681032274,-168.94,0.00019402,2]
[372551962,1752681032284,-1909.8291,0.00019458,2]
[372551963,1752681032293,-4743.2,0.00019459,2]
[372551965,1752681032302,-23900.0,0.00019558,2]
[372551967,1752681032312,-1900.0,0.000196,7]
[372551969,1752681032322,-200.0,0.000196,7]
[372551970,1752681032332,-300.0,0.000196,7]
[372551971,1752681032342,-300.0,0.000196,7]
[372551972,1752681032351,-300.0,0.000196,7]
[372551973,1752681032361,-150.4,0.00019636,2]
[372551974,1752681032370,-500.0,0.00019644,2]
[372551975,1752681032380,-326.31,0.00019655,2]
[372551976,1752681032389,-150.4,0.00019664,2]
[372551977,1752681032399,-166.94,0.00019686,2]
[372551978,1752681032408,-150.4,0.00019692,2]
[372551979,1752681032418,-3800.0,0.000197,7]
[372551980,1752681032428,-500.0,0.000197,7]
[372551981,1752681032438,-600.0,0.000197,7]
[372551982,1752681032451,-600.0,0.000197,7]
[372551983,1752681032461,-700.0,0.000197,7]
[372551984,1752681032471,-150.4,0.0001972,2]
[372551985,1752681032481,-150.4,0.00019748,2]
[372551986,1752681032493,-150.4,0.00019776,2]
[372551987,1752681032504,-431.11,0.00019788,2]
[372551988,1752681032514,-5700.0,0.000198,7]
[372551989,1752681032524,-700.0,0.000198,7]
[372551990,1752681032533,-1000.0,0.000198,7]
[372551991,1752681032543,-476.61752775,0.000198,7]
[372551992,1752681032552,-900.0,0.000198,7]
[372551993,1752681032561,-1100.0,0.000198,7]
[372551994,1752681032570,-150.4,0.00019804,2]
[372551995,1752681032580,-150.4,0.00019833,2]
[372551996,1752681032589,-2331.7861,0.000199,2]
[372551997,1752681032599,-273.9373,0.000199,2]
[372551998,1752681032608,-7700.0,0.000199,7]
[372551999,1752681032618,-1000.0,0.000199,7]
[372552000,1752681032627,-1300.0,0.000199,7]
[372552001,1752681032637,-1200.0,0.000199,7]
[372552002,1752681032646,-1500.0,0.000199,7]
[372552003,1752681032656,-397.588,0.000199,2]
[372552004,1752681032665,-20341.00362109,0.0002,2]
[372552005,1752681032675,-210.0,0.0002,7]
[372552006,1752681032685,-148351.92774076,0.0002,12]
[372552007,1752681033382,-445.04160015,0.0002,12]
[372552008,1752681033394,-490.39849838,0.0002,12]
[372552009,1752681033406,-2912.9447947,0.0002,12]
[372552010,1752681033418,-2553.80941116,0.0002,12]
[372552011,1752681033454,-3572.63583745,0.0002,12]
[372552012,1752681033466,-35425.77070046,0.0002,12]
[372552013,1752681033478,-34879.69141694,0.0002,12]
[372552014,1752681033488,-67882.15,0.0002,12]
[372552015,1752681033499,-461.0,0.0002,2]
[372552016,1752681033509,-1084.08,0.0002,12]
[372552017,1752681033519,-26084.98,0.0002,12]
[372552018,1752681033529,-11902.31,0.0002,12]
[372552019,1752681033538,-4795.35,0.0002,12]
[372552020,1752681033548,-8970.03164235,0.000201,2]
[372552021,1752681033558,-768.88574925,0.00020126,2]
[372552022,1752681033567,-168.94,0.0002013,2]
[372552023,1752681033576,-1000.0,0.00020156,2]
[372552024,1752681033586,-250.0,0.00020172,2]
[372552025,1752681033595,-150.0,0.00020172,2]
[372552026,1752681033605,-1000.0,0.00020172,2]
[372552027,1752681033615,-151.68,0.00020187,2]
[372552028,1752681033625,-150.0,0.00020195,2]
[372552029,1752681033635,-261.0,0.00020196,2]
[372552030,1752681033645,-250.0,0.00020241,2]
[372552031,1752681033655,-300.0,0.00020259,2]
[372552032,1752681033665,-1842.856486,0.00020291,8]
[372552033,1752681033674,-210.72748344,0.000203,7]
[372552034,1752681033684,-838.7287696,0.000203,7]
[372552035,1752681033696,-157.02912399,0.000203,2]
[372552036,1752681033705,-6977.90179101,0.00020306,2]
[372552037,1752681033714,-421.41501899,0.00020306,2]
[372552038,1752681033724,-3905.70158806,0.00020306,2]
[372552039,1752681033733,-153.96755628,0.00020306,2]
[372552040,1752681033743,-6977.90179098,0.00020339,2]
[372552041,1752681033752,-3905.70158798,0.00020339,2]
[372552042,1752681033762,-276317.61999518,0.00020339,2]
[372552043,1752681033816,-4073.0467184,0.00020339,2]
[372552044,1752681033828,-1183.78504713,0.00020339,2]
[372552045,1752681033839,-44593.068,0.00020339,2]
[372552063,1752681037615,-500.0,0.00020338,2]
[372552064,1752681037625,-500.0,0.00020338,2]
[372552066,1752681037634,-500.0,0.00020338,2]
[372552067,1752681037644,-236.66271821,0.00020338,2]
[372552069,1752681037655,-1373.69949705,0.00020339,2]
[372552071,1752681037667,-548.59262707,0.00020339,2]
[372552078,1752681037799,-2743.21456345,0.00020339,2]
[372552080,1752681037811,-3220.896,0.00020339,2]
[372552081,1752681037878,-1656723.57801273,0.00020339,2]
[372552082,1752681037889,-421.41501894,0.00020356,2]
[372552083,1752681037898,-500.0,0.00020356,2]
[372552084,1752681037908,-231.24889856,0.00020373,2]
[372552085,1752681037917,-6977.90179098,0.00020373,2]
[372552086,1752681037927,-3905.70158798,0.00020373,2]
[372552087,1752681037936,-157.02912396,0.00020377,2]
[372552088,1752681037948,-473.74218997,0.0002039,2]
[372552089,1752681037958,-155.73,0.0002039,2]
[372552090,1752681037967,-155.73,0.0002039,2]
[372552091,1752681037976,-155.73,0.0002039,2]
[372552092,1752681037986,-155.73,0.0002039,2]
[372552093,1752681037997,-177.19383188,0.00020395,2]